bitfinex/quotes_SOLUSD_20240906
["timestamp","ask_amount","ask_price","bid_price","bid_amount"]
[1725581130467,45.8499274,129.93,129.88,21.7334]
[1725581130661,53.5465274,129.93,129.88,21.7334]
[1725581130873,8.5465274,129.93,129.89,19.2463]
[1725581131374,8.5465274,129.93,129.89,26.9446]
[1725581131900,8.5465274,129.93,129.89,28.4841691]
[1725581132371,8.5465274,129.93,129.9,7.6982]
[1725581132688,0.8499274,129.93,129.9,19.2442]
[1725581133780,0.8499274,129.93,129.92,26.9396]
[1725581147301,0.8499274,129.93,129.92,49.6096]
[1725581151218,0.8499274,129.93,129.92,49.6096]
[1725581152914,0.8499274,129.93,129.92,51.14838114]
[1725581153497,0.8499274,129.93,129.92,49.6096]
[1725581157843,0.8499274,129.93,129.92,26.9396]
[1725581158634,0.8499274,129.93,129.9,26.9434]
[1725581159002,20.8499274,129.93,129.9,26.9434]
[1725581159224,28.5464274,129.93,129.9,19.2453]
[1725581159521,20.8499274,129.93,129.9,26.9431]
[1725581160022,20.8499274,129.93,129.75,2.83806189]
[1725581160023,25.7017,129.91,129.81,34.5962]
[1725581160201,7.6989,129.89,129.84,7.7013]
[1725581160508,20.0,129.88,129.84,7.7013]
[1725581161100,45.0,129.87,129.8,19.2594]
[1725581161314,7.7016,129.85,129.8,28.50361956]
[1725581161508,7.702,129.84,129.8,19.2594]
[1725581161707,27.702,129.84,129.8,20.80002307]
[1725581162117,20.0,129.84,129.8,28.50392307]
[1725581163604,20.0,129.84,129.81,7.7035]
[1725581163833,20.0,129.85,129.82,9.24328972]
[1725581164023,20.0,129.85,129.8,19.2594]
[1725581164024,16.5991,129.92,129.85,19.2525]
[1725581164229,7.6988,129.89,129.85,26.9535]
[1725581164520,7.6988,129.89,129.85,19.2525]
[1725581164905,7.6988,129.89,129.85,20.7925499]
[1725581165350,20.0,129.88,129.85,28.4931499]
[1725581165521,20.0,129.89,129.86,7.7005]
[1725581166325,20.0,129.89,129.88,7.6994]
[1725581167404,8.5464274,129.93,129.89,7.6987]
[1725581168127,8.5464274,129.93,129.88,7.6992]
[1725581168632,27.697,129.92,129.88,7.6992]
[1725581168802,20.0,129.92,129.9,7.6978]
[1725581169004,28.5464274,129.93,129.89,26.9452]
[1725581172333,20.8499274,129.93,129.9,7.6981]
[1725581172511,20.8499274,129.93,129.9,9.23752546]
[1725581174316,20.8499274,129.93,129.91,7.6976]
[1725581174515,0.8499274,129.93,129.91,7.6976]
[1725581174711,20.0,129.92,129.91,7.6976]
[1725581175028,0.8499274,129.93,129.92,7.697]
[1725581175232,0.8499274,129.93,129.92,9.23617401]
[1725581175417,0.8499274,129.93,129.92,1.53917401]
[1725581175618,0.8499274,129.93,129.92,7.697]
[1725581175825,0.8499274,129.93,129.91,42.2794]
[1725581176025,0.8499274,129.93,129.92,7.697]
[1725581176225,0.8499274,129.93,129.91,42.2795]
[1725581176924,0.8499274,129.93,129.9,7.698]
[1725581177124,0.8499274,129.93,129.89,6.4635]
[1725581177527,0.8499274,129.93,129.89,14.1619]
[1725581177922,0.8499274,129.93,129.9,1.53918176]
[1725581178546,0.8499274,129.93,129.89,14.1619]
[1725581178917,0.8499274,129.93,129.9,7.698]
[1725581179148,0.8499274,129.93,129.89,6.4635]
[1725581179326,0.8499274,129.93,129.92,7.697]
[1725581179524,0.8499274,129.93,129.92,26.9396]
[1725581181144,0.8499274,129.93,129.89,25.7094]
[1725581181321,0.8499274,129.93,129.89,6.4635]
[1725581181953,0.8499274,129.93,129.89,14.1621]
[1725581187526,0.8499274,129.93,129.9,9.23745426]
[1725581188030,0.8499274,129.93,129.9,26.9436]
[1725581188220,0.8499274,129.93,129.9,19.2454]
[1725581188424,0.8499274,129.93,129.9,13.07177187]
[1725581188624,0.8499274,129.93,129.92,26.9396]
[1725581189624,0.8499274,129.93,129.92,41.55025583]
[1725581190146,0.8499274,129.93,129.92,40.01137187]
[1725581197365,0.8499274,129.93,129.92,26.9396]
[1725581200561,0.8499274,129.93,129.91,7.6973]
[1725581202479,0.8499274,129.93,129.92,26.9396]
[1725581210485,0.8499274,129.93,129.88,15.3381]
[1725581210774,7.6985,129.9,129.84,7.7015]
[1725581210977,7.6989,129.89,129.83,14.2003]
[1725581211284,20.0,129.88,129.84,7.7017]
[1725581211571,20.0,129.89,129.85,7.7011]
[1725581211757,20.0,129.9,129.85,7.7011]
[1725581212079,7.6989,129.89,129.84,19.2543]
[1725581212256,20.0,129.88,129.84,19.2543]
[1725581212449,27.6998,129.88,129.82,7.7028]
[1725581212678,27.6998,129.88,129.8,25.7572]
[1725581212679,72.7,129.87,129.81,7.7033]
[1725581212881,52.7,129.87,129.81,7.7033]
[1725581213183,20.0,129.86,129.81,7.7033]
[1725581214574,20.0,129.86,129.82,7.7025]
[1725581214900,20.0,129.89,129.82,7.7025]
[1725581216891,20.0,129.89,129.8,25.7572]
[1725581217174,45.0,129.88,129.8,25.7572]
[1725581217381,20.0,129.87,129.82,7.7029]
[1725581218275,20.0,129.87,129.83,1.54023631]
[1725581218659,20.0,129.87,129.83,7.7023]
[1725581218985,20.0,129.88,129.83,7.7023]
[1725581219477,20.0,129.88,129.84,7.7017]
[1725581219676,20.0,129.89,129.84,7.7017]
[1725581220256,27.699,129.89,129.83,7.7019]
[1725581222488,20.0,129.89,129.82,19.257]
[1725581222695,45.0,129.88,129.79,19.2604]
[1725581222885,20.0,129.87,129.79,19.2604]
[1725581223192,27.7002,129.87,129.81,19.2586]
[1725581223370,27.7002,129.87,129.82,1.54018305]
[1725581223574,27.7002,129.87,129.83,1.54020833]
[1725581223575,20.0,129.87,129.83,1.54020833]
[1725581224568,15.3104,129.9,129.8,94.38703009]
[1725581224787,15.3104,129.9,129.85,7.7006]
[1725581224968,15.3104,129.9,129.86,7.7004]
[1725581225969,20.0,129.89,129.86,7.7004]
[1725581227186,20.0,129.89,129.84,19.253]
[1725581227395,20.0,129.89,129.85,1.53996029]
[1725581227687,20.0,129.89,129.85,9.24066029]
[1725581227914,20.0,129.89,129.85,7.7007]
[1725581229282,20.0,129.89,129.86,7.7005]
[1725581230384,20.0,129.89,129.87,7.6999]
[1725581230586,20.0,129.91,129.87,7.6999]
[1725581230791,20.0,129.91,129.86,7.7003]
[1725581232272,27.6977,129.91,129.86,7.7003]
[1725581233672,7.6982,129.9,129.85,26.9523]
[1725581233974,20.0,129.89,129.85,26.9523]
[1725581235293,20.0,129.89,129.86,7.7005]
[1725581235675,20.0,129.91,129.86,7.7005]
[1725581236094,20.0,129.91,129.87,26.9497]
[1725581236270,23.7308274,129.93,129.88,7.6993]
[1725581237686,20.0,129.92,129.88,7.6993]
[1725581239475,20.0,129.92,129.89,26.9457]
[1725581239676,20.8499274,129.93,129.9,9.23741252]
[1725581239888,0.8499274,129.93,129.9,9.23741252]
[1725581240086,0.8499274,129.93,129.91,26.9415]
[1725581240292,0.8499274,129.93,129.91,28.48079749]
[1725581240885,0.8499274,129.93,129.91,26.9415]
[1725581242300,0.8499274,129.93,129.92,7.697]
[1725581243108,0.8499274,129.93,129.92,9.23616078]
[1725581246005,0.8499274,129.93,129.92,7.697]
[1725581250090,0.8499274,129.93,129.92,9.23599422]
[1725581251686,0.8499274,129.93,129.92,7.697]
[1725581253793,0.8499274,129.93,129.92,9.23596307]
[1725581253987,0.8499274,129.93,129.92,7.697]
[1725581257212,0.8499274,129.93,129.91,26.9414]
[1725581260413,0.8499274,129.93,129.9,7.698]
[1725581260599,0.8499274,129.93,129.84,23.17]
[1725581260600,0.8499274,129.93,129.85,6.1167]
[1725581260801,65.0914274,129.93,129.85,6.1167]
[1725581261014,27.6972,129.92,129.87,7.6999]
[1725581263927,7.6977,129.91,129.86,26.9515]
[1725581264124,20.0,129.9,129.86,26.9515]
[1725581265109,20.0,129.9,129.87,7.6999]
[1725581265437,20.0,129.91,129.87,7.6999]
[1725581266925,27.6976,129.91,129.86,26.9514]
[1725581267220,20.0,129.91,129.83,19.255]
[1725581267428,7.6995,129.88,129.83,26.9569]
[1725581267607,20.0,129.87,129.81,15.2486]
[1725581267808,7.7011,129.85,129.81,15.2486]
[1725581268026,20.0,129.87,129.81,15.2486]
[1725581268206,27.7004,129.87,129.8,19.2592]
[1725581268407,39.251,129.87,129.78,15.2486]
[1725581268626,45.0,129.86,129.75,6.1167]
[1725581268822,22.9463,129.83,129.77,7.7055]
[1725581269034,20.0,129.82,129.77,7.7055]
[1725581269330,20.0,129.82,129.78,7.7051]
[1725581269529,20.0,129.82,129.79,7.7047]
[1725581269726,20.0,129.83,129.79,7.7047]
[1725581270412,20.0,129.83,129.8,7.704]
[1725581270614,20.0,129.85,129.8,7.704]
[1725581271217,20.0,129.85,129.78,26.9675]
[1725581271415,52.7018,129.84,129.78,26.9679]
[1725581271617,20.0,129.83,129.78,26.9679]
[1725581271829,20.0,129.83,129.78,32.32417345]
[1725581272137,27.7012,129.85,129.8,7.7039]
[1725581272638,20.0,129.85,129.78,13.06137345]
[1725581272843,20.0,129.85,129.81,19.2587]
[1725581273147,20.0,129.85,129.82,1.54031271]
[1725581274431,20.0,129.85,129.82,9.24321271]
[1725581274733,20.0,129.85,129.83,1.54025841]
[1725581275620,20.0,129.87,129.83,1.54025841]
[1725581276937,27.7,129.87,129.83,1.54025841]
[1725581277236,20.0,129.87,129.83,1.54025841]
[1725581277538,15.0765,129.89,129.83,9.24245841]
[1725581277539,27.6995,129.88,129.83,9.24245841]
[1725581277753,27.6995,129.88,129.82,7.7027]
[1725581279048,27.6995,129.88,129.83,7.7022]
[1725581279229,20.0,129.88,129.83,7.7022]
[1725581279623,20.0,129.88,129.84,7.7016]
[1725581280417,20.0,129.88,129.83,7.7021]
[1725581280630,27.6995,129.88,129.83,7.7021]
[1725581282353,52.7001,129.87,129.82,26.9586]
[1725581282648,27.701,129.86,129.8,19.55687345]
[1725581282944,27.701,129.86,129.81,7.7031]
[1725581283138,20.0,129.86,129.82,7.7029]
[1725581283322,20.0,129.86,129.83,7.7023]
[1725581283642,20.0,129.87,129.83,7.7023]
[1725581283941,20.0,129.87,129.82,1.54016268]
[1725581283942,27.7,129.87,129.82,7.7027]
[1725581285031,7.7006,129.86,129.82,7.7027]
[1725581285220,20.0,129.85,129.82,7.7027]
[1725581287032,20.0,129.85,129.83,1.54032747]
[1725581287326,20.0,129.86,129.83,1.54032747]
[1725581288545,20.0,129.86,129.82,7.7027]
[1725581289544,20.0,129.86,129.83,7.7023]
[1725581290638,20.0,129.86,129.82,7.7027]
[1725581294028,27.7007,129.86,129.82,7.7027]
[1725581295250,27.7007,129.86,129.81,19.2586]
[1725581295251,27.7007,129.86,129.81,26.9619]
[1725581297557,7.7014,129.85,129.81,26.9619]
[1725581297764,20.0,129.84,129.81,26.9619]
[1725581297937,20.0,129.84,129.81,19.2586]
[1725581298138,27.7018,129.84,129.8,7.7038]
[1725581299042,20.0,129.84,129.8,7.7038]
[1725581300261,20.0,129.84,129.81,7.7035]
[1725581301542,20.0,129.84,129.82,7.7028]
[1725581301732,7.7,129.87,129.83,7.7022]
[1725581301935,20.0,129.86,129.83,7.7022]
[1725581302175,20.0,129.86,129.82,26.9601]
[1725581303536,20.0,129.86,129.83,7.702]
[1725581304256,22.7757,129.89,129.84,9.24144021]
[1725581305040,7.6995,129.88,129.84,9.24144021]
[1725581305553,20.0,129.87,129.84,9.24144021]
[1725581306363,27.7002,129.87,129.82,7.7027]
[1725581306664,20.0,129.87,129.83,1.54025403]
[1725581306846,20.0,129.88,129.84,7.7014]
[1725581307050,20.0,129.88,129.85,9.24117675]
[1725581307246,20.0,129.88,129.86,1.53989343]
[1725581307450,20.0,129.89,129.86,1.53989343]
[1725581307659,20.0,129.89,129.85,7.7011]
[1725581308045,7.6986,129.9,129.86,9.24023382]
[1725581309237,20.0,129.89,129.86,7.7004]
[1725581309558,27.6988,129.89,129.85,7.701]
[1725581309736,27.6988,129.89,129.85,9.24088693]
[1725581310362,27.6988,129.89,129.85,7.701]
[1725581311362,20.0,129.89,129.84,19.2542]
[1725581311743,20.0,129.89,129.85,7.7009]
[1725581315071,27.6988,129.89,129.85,7.7009]
[1725581315445,7.6996,129.88,129.84,26.9557]
[1725581316059,20.0,129.89,129.84,19.2542]
[1725581316266,20.0,129.9,129.88,7.6992]
[1725581316454,24.0903,129.92,129.88,7.6992]
[1725581317342,24.0903,129.92,129.87,7.6999]
[1725581317544,20.0,129.91,129.87,7.6999]
[1725581321665,20.0,129.91,129.88,1.53956787]
[1725581322670,20.0,129.91,129.87,7.6999]
[1725581325951,20.0,129.91,129.88,20.78783105]
[1725581326150,20.0,129.92,129.88,20.78783105]
[1725581327178,20.0,129.92,129.88,28.48693105]
[1725581328445,20.0,129.92,129.88,26.9474]
[1725581328852,27.6972,129.92,129.88,26.9474]
[1725581329057,27.6972,129.92,129.88,19.2483]
[1725581330860,27.6972,129.92,129.88,20.78789583]
[1725581332556,27.6972,129.92,129.88,26.9477]
[1725581333575,20.0,129.92,129.88,26.9477]
[1725581334491,20.0,129.92,129.89,7.6984]
[1725581334661,20.8499274,129.93,129.89,7.6984]
[1725581334861,28.5464274,129.93,129.88,26.9474]
[1725581340290,20.8499274,129.93,129.89,33.84645587]
[1725581340510,20.8499274,129.93,129.9,1.53922776]
[1725581340511,0.8499274,129.93,129.9,1.53922776]
[1725581340691,0.8499274,129.93,129.91,19.2432]
[1725581340990,0.8499274,129.93,129.92,1.53914735]
[1725581342498,8.5464274,129.93,129.89,7.6986]
[1725581342898,0.8499274,129.93,129.89,7.6986]
[1725581343098,20.8499274,129.93,129.89,7.6986]
[1725581344177,20.8499274,129.93,129.88,19.2472]
[1725581344178,7.6973,129.92,129.88,19.2472]
[1725581344379,7.6973,129.92,129.87,13.7511]
[1725581344598,20.0,129.91,129.87,13.7511]
[1725581345402,27.6976,129.91,129.87,13.7511]
[1725581345701,7.6991,129.89,129.87,6.0516]
[1725581345886,20.0,129.91,129.86,16.1583]
[1725581346087,20.0,129.92,129.86,16.1583]
[1725581346283,7.698,129.91,129.86,23.8585]
[1725581346805,20.0920274,129.93,129.86,23.8585]
[1725581346806,27.6982,129.9,129.86,16.1583]
[1725581349497,27.6982,129.9,129.84,14.2501]
[1725581349498,7.6995,129.88,129.84,14.2501]
[1725581353411,20.0,129.9,129.82,17.35342279]
[1725581353616,7.7002,129.87,129.82,7.7025]
[1725581354484,7.7016,129.85,129.81,28.91041698]
[1725581354698,7.7016,129.85,129.81,19.2587]
[1725581354899,7.7016,129.85,129.81,26.9618]
[1725581355113,7.7016,129.85,129.82,1.54025382]
[1725581356009,7.7008,129.86,129.81,26.9618]
[1725581356211,20.0,129.85,129.81,26.9618]
[1725581356408,20.0,129.85,129.82,7.7025]
[1725581356908,20.0,129.88,129.82,7.7025]
[1725581357411,7.7006,129.86,129.82,7.7025]
[1725581357611,20.0,129.85,129.8,35.55097345]
[1725581357908,27.7015,129.85,129.81,7.7035]
[1725581358115,20.0,129.85,129.8,9.65284148]
[1725581358283,7.7035,129.81,129.8,9.65284148]
[1725581358988,7.7031,129.82,129.78,19.2633]
[1725581360288,7.7031,129.82,129.78,26.9685]
[1725581363024,7.7031,129.82,129.78,19.2633]
[1725581364115,7.7036,129.81,129.78,19.2633]
[1725581364404,7.7033,129.82,129.79,1.54084095]
[1725581364987,7.7026,129.83,129.78,26.9686]
[1725581365211,20.0,129.82,129.78,26.9686]
[1725581365613,20.0,129.82,129.78,19.2633]
[1725581365800,20.0,129.82,129.79,7.7047]
[1725581371506,20.0,129.82,129.78,19.2633]
[1725581371507,27.703,129.82,129.78,26.9684]
[1725581373415,20.0,129.82,129.79,7.7047]
[1725581375923,27.7029,129.82,129.78,26.9685]
[1725581376717,27.7029,129.82,129.79,1.54077193]
[1725581377025,27.7029,129.82,129.78,26.9685]
[1725581378729,27.7029,129.82,129.79,1.5407623]
[1725581379615,20.0,129.82,129.79,9.2452623]
[1725581379812,20.0,129.82,129.8,1.54060042]
[1725581380413,20.0,129.82,129.79,7.7045]
[1725581385834,20.0,129.82,129.8,19.2602]
[1725581386023,27.7025,129.83,129.8,19.2602]
[1725581389612,20.0,129.83,129.79,7.7044]
[1725581389927,6.2633,129.86,129.78,19.2631]
[1725581389928,20.0,129.85,129.78,19.2631]
[1725581390140,45.0,129.84,129.78,19.2631]
[1725581390331,20.0,129.83,129.78,19.2631]
[1725581391009,20.0,129.83,129.78,26.9682]
[1725581391426,20.0,129.83,129.77,7.7057]
[1725581391628,45.0,129.82,129.76,49.462]
[1725581391825,20.0,129.81,129.76,49.462]
[1725581392436,20.0,129.81,129.77,9.24645839]
[1725581392638,20.0,129.81,129.78,7.7052]
[1725581392942,20.0,129.82,129.78,7.7052]
[1725581394532,7.7036,129.81,129.78,7.7052]
[1725581400446,20.0,129.82,129.76,35.55097345]
[1725581400620,7.7012,129.85,129.8,13.06137345]
[1725581400935,7.7012,129.85,129.81,9.24344316]
[1725581401336,7.7012,129.85,129.81,7.7031]
[1725581402143,20.0,129.84,129.81,7.7031]
[1725581404729,20.0,129.84,129.82,7.7028]
[1725581404931,7.7006,129.86,129.82,7.7028]
[1725581404932,20.0,129.85,129.83,1.54032442]
[1725581405233,20.0,129.85,129.82,19.2573]
[1725581405719,20.0,129.85,129.82,26.9598]
[1725581406227,27.7012,129.85,129.81,7.7032]
[1725581406432,7.7017,129.84,129.8,26.964]
[1725581407125,7.7017,129.84,129.8,19.2603]
[1725581407347,27.7012,129.85,129.82,7.7029]
[1725581409224,20.0,129.85,129.83,7.702]
[1725581409435,7.7003,129.87,129.83,7.702]
[1725581409744,20.0,129.86,129.83,7.702]
[1725581412662,18.6879231,129.9,129.84,19.2543]
[1725581412837,18.6879231,129.9,129.86,7.7005]
[1725581412838,7.6992,129.89,129.86,7.7005]
[1725581413360,6.4306,129.92,129.87,9.23979]
[1725581413544,7.6982,129.91,129.87,9.23979]
[1725581414635,7.6972,129.92,129.88,7.6994]
[1725581414837,7.6972,129.92,129.89,1.53956461]
[1725581416241,20.0,129.91,129.89,1.53956461]
[1725581416651,0.8499274,129.93,129.88,19.2471]
[1725581416958,0.8499274,129.93,129.91,7.6975]
[1725581417133,0.8499274,129.93,129.92,9.23617508]
[1725581417869,0.8499274,129.93,129.92,7.697]
[1725581418359,0.8499274,129.93,129.92,20.75837345]
[1725581418573,0.8499274,129.93,129.92,67.29734856]
[1725581419360,0.8499274,129.93,129.92,52.697]
[1725581419542,0.8499274,129.93,129.92,65.75837345]
[1725581420355,0.8499274,129.93,129.92,20.75837345]
[1725581420551,0.8499274,129.93,129.92,65.75837345]
[1725581420753,20.0,130.0,129.97,7.6939]
[1725581421055,20.0,130.01,129.97,7.6939]
[1725581421563,7.6912,130.02,129.98,7.6934]
[1725581421862,7.6907,130.03,129.99,1.53845925]
[1725581422758,7.6912,130.02,129.98,26.9259]
[1725581423063,20.0,130.01,129.98,26.9259]
[1725581423557,20.0,130.01,129.98,19.2326]
[1725581423766,27.6917,130.01,129.96,7.6945]
[1725581423937,7.6924,130.0,129.95,19.2374]
[1725581424257,7.6935,129.98,129.94,7.6956]
[1725581424482,27.693,129.99,129.94,7.6956]
[1725581424944,7.693,129.99,129.94,7.6956]
[1725581425465,7.693,129.99,129.95,7.6952]
[1725581427463,7.6938,129.98,129.94,26.9348]
[1725581428538,27.6943,129.97,129.93,7.6962]
[1725581429151,7.6947,129.96,129.92,30.9369]
[1725581429350,7.6947,129.96,129.92,7.6966]
[1725581430263,7.6947,129.96,129.93,1.53911116]
[1725581431276,7.6947,129.96,129.92,7.6966]
[1725581432352,7.6955,129.95,129.91,26.9406]
[1725581432556,7.6955,129.95,129.92,9.2360913]
[1725581433073,7.6949,129.96,129.92,9.2360913]
[1725581433656,7.6953,129.95,129.92,1.5390913]
[1725581433856,7.6953,129.95,129.92,9.2360913]
[1725581434250,27.6946,129.97,129.93,26.937]
[1725581434459,7.6951,129.96,129.92,7.6968]
[1725581434641,27.6942,129.97,129.93,7.6964]
[1725581434844,7.6942,129.97,129.93,7.6964]
[1725581435150,20.0,129.96,129.93,7.6964]
[1725581435755,20.0,129.96,129.94,9.2347262]
[1725581436453,7.6933,129.99,129.95,26.9331]
[1725581436650,20.0,129.98,129.95,19.2381]
[1725581436860,7.693,129.99,129.95,26.9331]
[1725581437049,20.0,129.98,129.95,26.9331]
[1725581437360,7.693,129.99,129.95,26.9331]
[1725581438680,20.0,129.98,129.95,26.9331]
[1725581439361,20.0,129.98,129.95,19.2381]
[1725581439565,19.229,130.02,129.95,19.2381]
[1725581439566,7.6932,129.99,129.95,26.933]
[1725581439768,20.0,129.98,129.93,13.06137345]
[1725581439985,7.6936,129.98,129.94,7.6953]
[1725581440370,7.6936,129.98,129.94,26.9348]
[1725581440681,7.1929,129.99,129.95,9.23381975]
[1725581440878,20.0,129.98,129.95,9.23381975]
[1725581441190,20.0,129.98,129.96,7.6945]
[1725581441570,20.0,129.99,129.96,7.6945]
[1725581441981,20.0,129.99,129.97,1.53859701]
[1725581442282,16.6238,130.04,129.98,7.6931]
[1725581442579,7.6907,130.03,129.99,9.23079847]
[1725581442750,7.6907,130.03,129.99,7.6925]
[1725581442950,7.6913,130.02,129.98,26.9269]
[1725581444179,7.6907,130.03,129.99,9.23118145]
[1725581444365,7.6907,130.03,129.99,7.6928]
[1725581444584,20.0,130.02,129.99,7.6928]
[1725581445158,20.0,130.02,130.0,26.9223]
[1725581445358,7.6904,130.04,130.0,26.9223]
[1725581445594,20.0,130.03,130.0,26.9223]
[1725581446297,0.8499137,130.06,130.05,7.6893]
[1725581446463,0.8499137,130.06,130.03,19.2251]
[1725581446667,0.8499137,130.06,130.02,7.6909]
[1725581447198,0.8499137,130.06,130.01,30.734]
[1725581447400,7.6895,130.05,130.0,19.2297]
[1725581447573,20.0,130.04,130.0,26.9215]
[1725581447900,27.69,130.04,130.0,26.9215]
[1725581448109,20.0,130.04,130.01,9.2297824]
[1725581448896,20.0,130.04,130.01,7.6916]
[1725581449292,20.0,130.05,130.02,7.691]
[1725581450185,20.0,130.05,130.03,7.6904]
[1725581450396,20.8499137,130.06,130.03,7.6904]
[1725581451415,20.8499137,130.06,130.02,26.9183]
[1725581451583,28.5386137,130.06,130.02,26.9183]
[1725581452286,20.8499137,130.06,130.03,7.6905]
[1725581452813,20.8499137,130.06,130.04,9.22714099]
[1725581453006,0.8499137,130.06,130.04,9.22714099]
[1725581453503,0.8499137,130.06,130.05,1.53772539]
[1725581453705,0.8499137,130.06,130.04,7.6894]
[1725581454817,0.8499137,130.06,130.05,1.53770264]
[1725581455314,0.8499137,130.06,130.04,7.6894]
[1725581457593,8.5388137,130.06,130.02,19.2274]
[1725581458815,0.8499137,130.06,130.03,7.6905]
[1725581458990,0.8499137,130.06,130.02,19.2274]
[1725581459192,8.5389137,130.06,130.02,19.2274]
[1725581460116,8.5389137,130.06,130.02,28.4560341]
[1725581460310,8.5389137,130.06,130.02,26.9182]
[1725581460813,0.8499137,130.06,130.03,9.22840849]
[1725581461113,20.8499137,130.06,130.04,7.6896]
[1725581462322,0.8499137,130.06,130.04,7.6896]
[1725581462990,0.8499137,130.06,130.05,9.22693046]
[1725581463909,0.8499137,130.06,130.05,26.9126]
[1725581465403,0.8499137,130.06,130.05,41.51141282]
[1725581465803,0.8499137,130.06,130.05,39.97397345]
[1725581466494,0.8499137,130.06,130.05,84.97397345]
[1725581466707,0.8499137,130.06,130.05,39.97397345]
[1725581467111,0.8499137,130.06,130.05,86.51111631]
[1725581467802,0.8499137,130.06,130.05,84.97397345]
[1725581468012,0.8499137,130.06,130.05,39.97397345]
[1725581469295,0.8499137,130.06,130.05,86.51105483]
[1725581471097,7.6829,130.16,130.12,26.897]
[1725581471419,7.6823,130.17,130.13,7.6844]
[1725581471621,23.4098,130.21,130.16,7.6824]
[1725581471919,8.5311137,130.19,130.15,19.2084]
[1725581472096,0.8499137,130.19,130.14,7.6839]
[1725581472423,0.8499137,130.19,130.14,19.2097]
[1725581473008,7.6817,130.18,130.14,19.2097]
[1725581473719,7.6835,130.15,130.12,1.53657257]
[1725581473913,27.6827,130.17,130.12,1.53657257]
[1725581474117,7.6829,130.16,130.12,9.22167257]
[1725581474318,27.6823,130.17,130.12,7.6851]
[1725581474625,7.6829,130.16,130.12,7.6851]
[1725581475006,27.6824,130.17,130.09,19.38027345]
[1725581475208,27.6824,130.17,130.12,26.8975]
[1725581475419,27.6824,130.17,130.13,7.6844]
[1725581475993,20.0,130.17,130.1,45.0]
[1725581476197,20.0,130.17,130.09,25.5354]
[1725581476198,20.8499137,130.19,130.09,38.59677345]
[1725581476926,20.8499137,130.19,130.1,1.536592]
[1725581477101,7.6829,130.16,130.12,7.685]
[1725581477305,7.6829,130.16,130.13,1.5365896]
[1725581477624,7.6822,130.17,130.13,1.5365896]
[1725581477928,20.0,130.16,130.13,1.5365896]
[1725581478232,27.6828,130.16,130.13,1.5365896]
[1725581479113,20.0,130.16,130.12,7.685]
[1725581479502,7.6852,130.12,130.08,19.218]
[1725581479710,7.6847,130.13,130.08,26.9051]
[1725581480034,7.6847,130.13,130.09,7.6869]
[1725581481041,7.6847,130.13,130.08,19.218]
[1725581481042,7.6879,130.08,130.04,7.6895]
[1725581481332,7.6879,130.08,130.02,40.8393]
[1725581481502,7.6872,130.09,130.04,7.6898]
[1725581481704,20.0,130.08,130.05,7.6893]
[1725581481925,7.6866,130.1,130.05,7.6893]
[1725581482225,27.6869,130.09,130.05,7.6893]
[1725581484327,20.0,130.09,130.06,7.6885]
[1725581485415,20.0,130.09,130.02,21.6128]
[1725581485721,20.0,130.09,129.99,6.2233]
[1725581485722,45.0,130.08,129.99,6.2233]
[1725581486044,20.0,130.07,129.99,6.2233]
[1725581486618,7.6897,130.05,130.0,26.9218]
[1725581487034,20.0,130.04,130.01,7.6913]
[1725581490826,20.0,130.04,129.99,6.2233]
[1725581490827,7.6888,130.06,130.02,26.9186]
[1725581491433,16.6199,130.09,130.02,19.2277]